bitfinex/quotes_SOLUSD_20220228
["timestamp","ask_amount","ask_price","bid_price","bid_amount"]
[1646049600413,4.402,90.894,90.811,58.14339818]
[1646049600816,2.74678921,90.893,90.811,58.14339818]
[1646049601013,4.402,90.892,90.811,58.14339818]
[1646049601215,177.15,90.889,90.811,58.14339818]
[1646049601416,177.15,90.887,90.811,58.14339818]
[1646049601617,177.15,90.885,90.811,58.14339818]
[1646049601814,177.15,90.883,90.811,58.14339818]
[1646049602017,1.39710051,90.882,90.811,58.14339818]
[1646049602214,4.402,90.881,90.811,58.14339818]
[1646049602614,110.7,90.879,90.811,58.14339818]
[1646049602817,110.7,90.867,90.811,58.14339818]
[1646049603013,1.52820727,90.864,90.811,58.14339818]
[1646049603617,23.1102,90.866,90.811,58.14339818]
[1646049605721,23.1102,90.866,90.811,74.66939818]
[1646049605920,23.1102,90.866,90.811,58.14339818]
[1646049606122,1.76145592,90.902,90.811,64.70339818]
[1646049606322,24.3379,90.886,90.811,64.70339818]
[1646049606521,1.57155132,90.885,90.811,64.70339818]
[1646049606724,24.3379,90.886,90.811,64.70339818]
[1646049606922,1.65167179,90.885,90.811,64.70339818]
[1646049607323,1.65167179,90.885,90.811,81.60069818]
[1646049607522,24.3379,90.886,90.811,81.60069818]
[1646049608924,1.69220965,90.885,90.811,81.60069818]
[1646049609125,4.402,90.907,90.811,81.60069818]
[1646049609328,16.8511,90.942,90.812,11.1683527]
[1646049609329,24.439,90.917,90.812,11.1683527]
[1646049609525,24.439,90.917,90.812,33.81670654]
[1646049609728,24.439,90.917,90.813,42.92755396]
[1646049609929,24.439,90.917,90.814,8.26091954]
[1646049610128,24.439,90.917,90.815,29.50087788]
[1646049610329,24.439,90.917,90.816,8.65105754]
[1646049610530,24.439,90.917,90.831,110.7]
[1646049610728,24.493,90.929,90.835,110.7]
[1646049610929,24.493,90.929,90.837,110.7]
[1646049611129,24.493,90.929,90.851,56.97797378]
[1646049611328,24.493,90.929,90.852,6.0]
[1646049612330,2.9130169,90.926,90.852,6.0]
[1646049612730,2.9130169,90.926,90.853,2.74678921]
[1646049613029,2.9130169,90.926,90.854,6.0]
[1646049614732,2.9130169,90.926,90.855,110.7]
[1646049614933,2.9130169,90.926,90.87,15.87]
[1646049615133,2.9130169,90.926,90.872,48.04082158]
[1646049615533,2.9130169,90.926,90.873,6.0]
[1646049615734,2.9130169,90.926,90.873,60.79644032]
[1646049616031,2.9130169,90.926,90.874,54.79644032]
[1646049616232,2.9130169,90.926,90.875,6.0]
[1646049616432,24.699,90.957,90.875,6.0]
[1646049616433,24.699,90.957,90.89,15.87]
[1646049616633,24.699,90.957,90.891,49.79952291]
[1646049617151,24.699,90.957,90.892,27.67502051]
[1646049617349,24.699,90.957,90.893,6.0]
[1646049618850,24.699,90.957,90.893,33.67502051]
[1646049622059,24.699,90.957,90.891,43.79952291]
[1646049622656,1.75759491,90.956,90.891,43.79952291]
[1646049625560,68.20759491,90.956,90.891,43.79952291]
[1646049625762,1.77211429,90.955,90.891,43.79952291]
[1646049625960,66.45,90.946,90.891,43.79952291]
[1646049626161,26.04139602,90.945,90.891,43.79952291]
[1646049626362,1.57690689,90.944,90.891,43.79952291]
[1646049631366,24.5215,90.945,90.891,43.79952291]
[1646049631767,1.56227865,90.944,90.891,43.79952291]
[1646049632768,24.5215,90.945,90.891,43.79952291]
[1646049633168,1.50133952,90.944,90.891,43.79952291]
[1646049633368,2.3698782,90.9,90.891,43.79952291]
[1646049633568,1.50133952,90.944,90.892,2.19086048]
[1646049633769,24.5215,90.945,90.892,36.37339477]
[1646049633967,1.84199004,90.985,90.892,36.37339477]
[1646049634167,22.6503,90.964,90.893,54.2439541]
[1646049634567,22.6503,90.964,90.894,54.2439541]
[1646049634970,22.6503,90.964,90.895,31.52153429]
[1646049635369,22.6503,90.964,90.896,27.12253429]
[1646049635571,22.6503,90.964,90.897,4.398]
[1646049636173,22.6503,90.964,90.894,4.398]
[1646049636371,22.6503,90.964,90.895,6.0]
[1646049636569,22.6503,90.964,90.896,4.399]
[1646049636769,22.6503,90.964,90.897,6.0]
[1646049636971,1.44739196,90.963,90.898,4.398]
[1646049637370,1.44739196,90.963,90.897,6.0]
[1646049637571,22.6503,90.964,90.893,31.57849297]
[1646049637771,22.6503,90.964,90.894,10.399]
[1646049638371,1.60919132,90.963,90.894,10.399]
[1646049638570,22.6503,90.964,90.894,10.399]
[1646049638769,22.6503,90.964,90.894,6.0]
[1646049639170,22.6503,90.964,90.895,4.399]
[1646049639370,22.6503,90.964,90.896,6.0]
[1646049639570,22.6503,90.964,90.9,15.87]
[1646049640974,22.6503,90.964,90.901,4.398]
[1646049642371,1.61123893,90.963,90.9,15.87]
[1646049642573,1.50350691,90.962,90.893,16.4615]
[1646049644373,22.6503,90.964,90.893,16.4615]
[1646049644775,22.6503,90.964,90.894,27.12253429]
[1646049646079,1.61815021,90.963,90.894,27.12253429]
[1646049646375,22.6503,90.964,90.894,27.12253429]
[1646049646780,22.6503,90.964,90.894,31.52153429]
[1646049648179,1.71238913,90.963,90.894,4.399]
[1646049649684,22.6503,90.964,90.894,4.399]
[1646049651310,22.6503,90.964,90.893,16.4615]
[1646049653016,112.36070819,90.963,90.893,16.4615]
[1646049653210,1.82612429,90.962,90.87,16.5709]
[1646049653411,1.82612429,90.962,90.87,32.4409]
[1646049655513,1.82612429,90.962,90.871,4.399]
[1646049656513,4.399,90.961,90.87,16.5709]
[1646049657414,4.399,90.961,90.871,44.63155171]
[1646049658314,110.7,90.96,90.871,44.63155171]
[1646049658514,110.7,90.958,90.871,44.63155171]
[1646049658814,1.48075663,90.955,90.871,44.63155171]
[1646049659015,4.399,90.954,90.871,44.63155171]
[1646049659414,1.48075663,90.955,90.871,44.63155171]
[1646049659915,2.74678921,90.961,90.871,44.63155171]
[1646049660819,2.74678921,90.961,90.872,27.12253429]
[1646049661014,113.44678921,90.961,90.872,27.12253429]
[1646049661215,1.82488523,90.96,90.872,27.12253429]
[1646049661617,1.82488523,90.96,90.871,44.63155171]
[1646049661817,22.6503,90.964,90.873,2.74678921]
[1646049662016,22.6503,90.964,90.875,110.7]
[1646049662217,22.6503,90.964,90.881,110.7]
[1646049662519,22.6503,90.964,90.884,2.62806533]
[1646049662720,22.6503,90.964,90.886,110.7]
[1646049662917,22.6503,90.964,90.9,15.87]
[1646049663117,22.6503,90.964,90.901,55.74008224]
[1646049663518,1.51608607,90.963,90.901,51.34208224]
[1646049663720,1.47382915,90.962,90.887,6.0]
[1646049664019,1.47382915,90.962,90.838,23.9213]
[1646049664020,1.47382915,90.962,90.877,4.399]
[1646049664219,1.47382915,90.962,90.869,4.399]
[1646049664819,1.47382915,90.962,90.87,56.70342665]
[1646049665019,1.47382915,90.962,90.871,4.399]
[1646049665420,1.47382915,90.962,90.871,19.13202526]
[1646049665823,1.47382915,90.962,90.872,24.43586762]
[1646049666022,1.47382915,90.962,90.873,4.399]
[1646049666421,1.47382915,90.962,90.872,4.399]
[1646049668925,1.47382915,90.962,90.871,14.73302526]
[1646049669125,1.47382915,90.962,90.872,4.399]
[1646049669525,1.47382915,90.962,90.873,24.43586762]
[1646049669825,1.47382915,90.962,90.874,10.399]
[1646049670024,1.47382915,90.962,90.875,26.90037265]
[1646049670224,1.47382915,90.962,90.88,15.87]
[1646049670427,1.47382915,90.962,90.875,51.33624027]
[1646049670428,4.399,90.961,90.875,51.33624027]
[1646049670626,4.399,90.961,90.87,56.70342665]
[1646049671031,22.6503,90.964,90.871,110.7]
[1646049671230,22.6503,90.964,90.88,15.87]
[1646049671429,22.6503,90.964,90.881,6.0]
[1646049671729,22.6503,90.964,90.882,22.5752]
[1646049671928,6.14752921,91.007,90.884,110.7]
[1646049672128,6.14752921,91.007,90.886,110.7]
[1646049672329,110.7,91.006,90.9,15.87]
[1646049672532,110.7,91.004,90.901,69.63888715]
[1646049672729,110.7,91.002,90.902,6.0]
[1646049672929,110.7,91.002,90.901,69.63888715]
[1646049672930,1.5494801,91.001,90.901,69.63888715]
[1646049673129,4.397,91.0,90.901,69.63888715]
[1646049674131,4.397,91.005,90.901,69.63888715]
[1646049675030,4.397,91.005,90.901,46.35248715]
[1646049675231,110.7,90.999,90.901,46.35248715]
[1646049675430,110.7,90.997,90.901,46.35248715]
[1646049675632,110.7,90.995,90.86,15.87]
[1646049675833,110.7,90.993,90.847,22.7927]
[1646049676032,110.7,90.991,90.847,22.7927]
[1646049676231,110.7,90.979,90.847,22.7927]
[1646049676431,110.7,90.977,90.847,22.7927]
[1646049676631,53.61281517,90.978,90.86,51.20468764]
[1646049676632,110.7,90.975,90.86,51.20468764]
[1646049676832,110.7,90.959,90.86,51.20468764]
[1646049677032,110.7,90.957,90.86,51.20468764]
[1646049677233,110.7,90.955,90.86,51.20468764]
[1646049677431,110.7,90.953,90.86,51.20468764]
[1646049677633,110.7,90.951,90.86,51.20468764]
[1646049677832,1.61112748,90.95,90.86,51.20468764]
[1646049678233,1.48014935,90.947,90.86,51.20468764]
[1646049678435,4.4,90.946,90.86,51.20468764]
[1646049678834,1.44172667,90.943,90.86,51.20468764]
[1646049679133,4.4,90.942,90.859,4.399]
[1646049679334,110.7,90.939,90.859,4.399]
[1646049679534,110.7,90.937,90.859,4.399]
[1646049679734,110.7,90.935,90.859,4.399]
[1646049679935,110.7,90.933,90.859,4.399]
[1646049680135,110.7,90.919,90.859,4.399]
[1646049680333,5.95816232,90.932,90.859,4.399]
[1646049680334,110.7,90.909,90.859,4.399]
[1646049680534,1.68427018,90.908,90.859,0.3797]
[1646049680734,1.75431353,90.905,90.79,11.50088758]
[1646049680940,1.75431353,90.905,90.784,22.9829]
[1646049681235,1.75431353,90.905,90.788,43.60954778]
[1646049681435,4.402,90.904,90.788,43.60954778]
[1646049681635,110.7,90.889,90.788,43.60954778]
[1646049681836,110.7,90.887,90.788,43.60954778]
[1646049682036,110.7,90.885,90.788,43.60954778]
[1646049682236,110.7,90.883,90.788,43.60954778]
[1646049682438,110.7,90.879,90.788,43.60954778]
[1646049682736,1.60466604,90.876,90.788,43.60954778]
[1646049682938,1.71535522,90.873,90.788,43.60954778]
[1646049683136,4.402,90.872,90.788,43.60954778]
[1646049683737,4.402,90.872,90.754,13.87994683]
[1646049683738,2.74678921,90.871,90.754,13.87994683]
[1646049683941,112.1294785,90.859,90.693,2.5511842]
[1646049684138,110.7,90.857,90.71,11.51017501]
[1646049684341,1.73337219,90.848,90.71,11.51017501]
[1646049684539,1.73337219,90.848,90.693,2.5511842]
[1646049684540,1.84330235,90.838,90.709,26.95603239]
[1646049684740,1.87272381,90.836,90.71,46.65662684]
[1646049685041,4.406,90.835,90.711,26.95603239]
[1646049685241,110.7,90.819,90.71,46.65662684]
[1646049685439,1.60347071,90.816,90.71,46.65662684]
[1646049686042,4.407,90.815,90.71,46.65662684]
[1646049686241,110.7,90.809,90.71,46.65662684]
[1646049686441,1.46970057,90.808,90.71,46.65662684]
[1646049686739,4.407,90.807,90.71,46.65662684]
[1646049687340,1.35403992,90.804,90.71,46.65662684]
[1646049687543,15.87,90.8,90.71,46.65662684]
[1646049687740,5.86562815,90.799,90.71,46.65662684]
[1646049689342,1.45862815,90.799,90.71,46.65662684]
[1646049690643,1.45862815,90.799,90.711,4.407]
[1646049691046,1.45862815,90.799,90.71,46.65662684]
[1646049691646,4.407,90.798,90.71,46.65662684]
[1646049692545,7.15378921,90.798,90.71,46.65662684]
[1646049692745,4.407,90.798,90.684,4.407]
[1646049692947,4.407,90.798,90.667,4.408]
[1646049693146,2.74678921,90.797,90.671,22.76168781]
[1646049693348,4.408,90.796,90.671,22.76168781]
[1646049693549,4.408,90.796,90.672,4.408]
[1646049693746,2.74678921,90.795,90.673,53.25642378]
[1646049693949,4.408,90.794,90.673,53.25642378]
[1646049694146,15.87,90.78,90.673,53.25642378]
[1646049694347,15.87,90.78,90.674,4.408]
[1646049694348,1.60312883,90.778,90.674,4.408]
[1646049694545,1.60312883,90.778,90.673,53.25642378]
[1646049694546,5.84948057,90.777,90.673,53.25642378]
[1646049694746,1.74953474,90.775,90.673,53.25642378]
[1646049694946,4.408,90.774,90.673,53.25642378]
[1646049695148,1.58689846,90.769,90.673,53.25642378]
[1646049696149,5.99589846,90.769,90.673,53.25642378]
[1646049696346,110.7,90.768,90.673,53.25642378]
[1646049696547,1.49991278,90.767,90.673,53.25642378]
[1646049696747,1.49605898,90.764,90.64,22.76168781]
[1646049696947,110.7,90.759,90.64,22.76168781]
[1646049697148,110.7,90.757,90.64,22.76168781]
[1646049697351,110.7,90.755,90.626,22.76168781]
[1646049697551,5.95,90.709,90.597,5.75170354]
[1646049697755,5.95,90.709,90.591,51.09515562]
[1646049697756,112.57070173,90.699,90.591,51.09515562]
[1646049697952,2.14968845,90.698,90.591,51.09515562]
[1646049698155,110.7,90.689,90.591,0.80385971]
[1646049698352,110.7,90.669,90.591,0.80385971]
[1646049698552,15.87,90.66,90.591,0.80385971]
[1646049698756,15.87,90.65,90.591,0.49475823]
[1646049698954,22.7233,90.649,90.591,0.49475823]
[1646049699153,2.14046681,90.648,90.591,0.49475823]
[1646049700378,7.16078921,90.647,90.591,0.49475823]
[1646049700578,2.74678921,90.647,90.591,0.49475823]
[1646049700781,4.414,90.646,90.591,0.49475823]
[1646049700979,2.14046681,90.648,90.591,0.49475823]
[1646049701180,4.414,90.647,90.591,0.49475823]
[1646049701781,110.7,90.642,90.591,0.49475823]
[1646049701980,15.87,90.63,90.552,47.5870889]
[1646049702280,1.89374209,90.629,90.526,0.49475823]
[1646049702480,4.416,90.628,90.526,0.49475823]
[1646049702680,71.3437,90.628,90.526,0.49475823]
[1646049702880,1.91766131,90.627,90.526,0.49475823]
[1646049703080,1.91766131,90.627,90.527,2.74678921]
[1646049703281,1.91766131,90.627,90.528,58.4698904]
[1646049703680,1.91766131,90.627,90.529,2.74678921]
[1646049703883,1.91766131,90.627,90.53,4.416]
[1646049704083,15.87,90.65,90.531,6.0]
[1646049704282,2.47549587,90.649,90.532,117.21791185]
[1646049704483,1.89794354,90.659,90.533,6.0]
[1646049704682,1.89794354,90.659,90.534,4.415]
[1646049704882,15.87,90.66,90.535,6.0]
[1646049705083,2.17460712,90.659,90.536,4.415]
[1646049705283,2.17460712,90.659,90.537,6.0]
[1646049705583,2.17460712,90.659,90.538,4.415]
[1646049705884,2.17460712,90.659,90.539,6.0]
[1646049706083,2.17460712,90.659,90.54,4.415]
[1646049706284,2.17460712,90.659,90.542,58.40553456]
[1646049706486,2.17460712,90.659,90.543,115.114]
[1646049706785,23.5213,90.677,90.545,110.7]
[1646049706983,2.21960793,90.676,90.546,6.25982121]
[1646049707184,2.21960793,90.676,90.561,47.12409757]
[1646049707384,2.21960793,90.676,90.562,10.414]
[1646049707585,2.21960793,90.676,90.562,161.51729567]
[1646049707785,2.21960793,90.676,90.562,53.56408488]
[1646049707985,112.91960793,90.676,90.563,15.8777832]
[1646049708187,2.4525176,90.675,90.564,6.0]
[1646049708385,2.4525176,90.675,90.563,18.62457241]
[1646049708586,2.4525176,90.675,90.564,23.03857241]
[1646049708989,2.4525176,90.675,90.565,2.74678921]
[1646049709187,4.414,90.674,90.566,4.414]
[1646049709388,110.7,90.669,90.566,4.414]
[1646049709587,110.7,90.667,90.565,2.74678921]
[1646049709789,110.7,90.665,90.561,63.28939757]
[1646049709987,110.7,90.663,90.561,63.28939757]
[1646049710187,110.7,90.659,90.561,47.12409757]
[1646049710388,1.8965076,90.658,90.561,47.12409757]
[1646049710789,4.414,90.657,90.561,47.12409757]
[1646049711388,1.85624728,90.655,90.561,47.12409757]
[1646049711592,2.12674444,90.654,90.561,47.12409757]
[1646049712391,4.414,90.653,90.561,47.12409757]
[1646049712791,1.97305866,90.653,90.561,47.12409757]
[1646049713892,66.45,90.651,90.561,47.12409757]
[1646049714095,2.27130799,90.648,90.561,47.12409757]
[1646049714295,1.8292649,90.655,90.562,7.16078921]
[1646049714493,1.8292649,90.655,90.562,13.57078921]
[1646049714693,1.8292649,90.655,90.563,2.74678921]
[1646049714894,1.8292649,90.655,90.564,4.414]
[1646049715297,1.8292649,90.655,90.565,2.74678921]
[1646049715496,2.35092919,90.667,90.566,4.414]
[1646049715795,2.35092919,90.667,90.565,2.74678921]
[1646049715996,2.35092919,90.667,90.567,2.74678921]
[1646049716396,2.46700104,90.666,90.568,10.414]
[1646049716796,2.46700104,90.666,90.569,2.74678921]
[1646049716999,2.46700104,90.666,90.57,10.414]
[1646049717397,2.46700104,90.666,90.571,2.74678921]
[1646049717597,2.46700104,90.666,90.572,4.414]
[1646049717997,2.46700104,90.666,90.573,2.74678921]
[1646049718198,2.46700104,90.666,90.575,53.62261256]
[1646049718397,2.46700104,90.666,90.576,4.414]
[1646049718598,2.46700104,90.666,90.576,7.16078921]
[1646049718798,2.46700104,90.666,90.577,2.74678921]
[1646049718998,24.2279,90.667,90.578,4.413]
[1646049719201,24.2279,90.667,90.58,110.7]
[1646049719398,24.2279,90.667,90.582,110.7]
[1646049719798,24.2279,90.667,90.584,110.7]
[1646049720198,24.2279,90.667,90.585,10.413]
[1646049720400,24.2279,90.667,90.586,110.7]
[1646049720599,2.44148758,90.688,90.589,56.94321731]
[1646049721200,2.44148758,90.688,90.59,2.74678921]
[1646049721400,2.44148758,90.688,90.591,6.0]
[1646049721802,2.44148758,90.688,90.592,2.74678921]
[1646049722400,110.7,90.687,90.592,2.74678921]
[1646049722601,66.45,90.68,90.589,56.94321731]
[1646049722800,177.15,90.675,90.589,56.94321731]
[1646049723000,1.93224308,90.674,90.589,56.94321731]
[1646049723401,24.9823,90.673,90.589,56.94321731]
[1646049723600,2.03317673,90.672,90.589,56.94321731]
[1646049724700,2.03317673,90.672,90.59,2.74678921]
[1646049725309,2.03317673,90.672,90.591,4.413]
[1646049725503,2.47524665,90.687,90.593,110.7]
[1646049725702,2.47524665,90.687,90.592,6.0]
[1646049725703,2.47524665,90.687,90.595,110.7]
[1646049725902,2.47524665,90.687,90.596,10.413]
[1646049726102,2.47524665,90.687,90.596,6.0]
[1646049726303,2.47524665,90.687,90.596,8.74678921]
[1646049726503,2.47524665,90.687,90.6,15.87]
[1646049726705,2.19807361,90.715,90.601,6.0]
[1646049726904,23.6059,90.714,90.601,8.74678921]
[1646049727206,1.96535904,90.713,90.603,50.54970828]
[1646049727405,1.96535904,90.713,90.604,6.0]
[1646049727606,1.96535904,90.713,90.604,8.74678921]
[1646049727807,1.96535904,90.713,90.604,6.0]
[1646049728008,1.96535904,90.713,90.605,2.74678921]
[1646049728308,1.96535904,90.713,90.606,6.0]
[1646049728508,1.96535904,90.713,90.607,110.7]
[1646049728708,112.66535904,90.713,90.608,6.0]
[1646049728908,1.96535904,90.713,90.608,6.0]
[1646049729108,1.96535904,90.713,90.608,8.74678921]
[1646049729309,1.96535904,90.713,90.609,2.74678921]
[1646049729507,1.96535904,90.713,90.61,6.0]
[1646049729908,110.7,90.712,90.611,2.74678921]
[1646049730111,2.22644306,90.711,90.611,2.74678921]
[1646049730313,4.412,90.71,90.611,2.74678921]
[1646049730511,2.22644306,90.711,90.611,2.74678921]
[1646049730710,4.412,90.71,90.611,2.74678921]
[1646049731111,4.412,90.71,90.607,16.3549]
[1646049731112,177.15,90.709,90.607,16.3549]
[1646049731311,110.7,90.707,90.607,16.3549]
[1646049731511,110.7,90.705,90.607,16.3549]
[1646049731714,110.7,90.699,90.608,2.74678921]
[1646049731913,2.44593779,90.698,90.608,2.74678921]
[1646049732113,4.412,90.697,90.603,50.54970828]
[1646049732514,110.7,90.677,90.603,50.54970828]
[1646049732713,177.15,90.665,90.603,50.54970828]
[1646049732915,2.00730673,90.662,90.603,50.54970828]
[1646049733112,110.7,90.659,90.568,2.74678921]
[1646049733332,110.7,90.659,90.56,40.698]
[1646049733533,1.9302896,90.658,90.56,40.698]
[1646049733732,2.37772581,90.654,90.56,40.698]
[1646049733932,1.98839213,90.648,90.56,16.7399]
[1646049734133,1.98839213,90.648,90.561,47.27998221]
[1646049734534,1.98839213,90.648,90.562,8.74678921]
[1646049735034,1.98839213,90.648,90.563,2.74678921]
[1646049735935,1.98839213,90.648,90.564,6.0]
[1646049736234,1.98839213,90.648,90.563,2.74678921]
[1646049736435,1.98839213,90.648,90.561,47.27998221]
[1646049738038,112.68839213,90.648,90.561,47.27998221]
[1646049738238,110.7,90.648,90.561,47.27998221]
[1646049738438,2.2283324,90.647,90.561,47.27998221]
[1646049745742,110.7,90.644,90.561,47.27998221]
[1646049745943,2.32192277,90.643,90.561,47.27998221]
[1646049747344,2.0982326,90.648,90.561,47.27998221]
[1646049747746,2.0982326,90.648,90.561,46.77998221]
[1646049749544,177.15,90.645,90.561,46.77998221]
[1646049749744,1.90024796,90.644,90.561,46.77998221]
[1646049750044,2.14391608,90.638,90.561,46.77998221]
[1646049750247,1.89804722,90.634,90.527,34.97707003]
[1646049750445,112.49151701,90.629,90.527,34.97707003]
[1646049750645,2.22516774,90.626,90.527,34.97707003]
[1646049750847,2.30871946,90.624,90.53,27.64849011]
[1646049751147,113.00879377,90.609,90.531,46.52746264]
[1646049751346,113.00879377,90.609,90.528,27.64849011]
[1646049751347,2.07902729,90.607,90.528,27.64849011]
[1646049751546,66.45,90.596,90.528,27.64849011]
[1646049751750,2.39858636,90.594,90.514,16.5809]
[1646049752147,15.87,90.59,90.514,16.5809]
[1646049752348,2.20637953,90.589,90.514,16.5809]
[1646049752547,2.03058455,90.587,90.515,59.99737176]
[1646049756150,2.03058455,90.587,90.527,27.78846078]
[1646049756353,68.48058455,90.587,90.527,27.78846078]
[1646049756550,110.7,90.572,90.486,5.75968099]
[1646049756751,110.7,90.564,90.493,16.4893]
[1646049756952,1.87561102,90.563,90.493,16.4893]
[1646049757351,1.87561102,90.563,90.494,51.73191596]
[1646049760766,179.02561102,90.563,90.494,51.73191596]
[1646049760966,1.84860415,90.562,90.494,51.73191596]
[1646049763467,1.84860415,90.562,90.488,16.5101]
[1646049763666,1.84860415,90.562,90.46,28.26405465]
[1646049763667,15.87,90.56,90.46,28.26405465]
[1646049763869,26.0438383,90.559,90.461,6.0]
[1646049764066,112.74568094,90.558,90.461,6.0]
[1646049764266,110.7,90.554,90.461,6.0]
[1646049764468,2.04773042,90.553,90.462,51.27701436]
[1646049764668,2.04773042,90.553,90.463,6.0]
[1646049765168,66.45,90.547,90.46,28.26405465]
[1646049765371,66.45,90.541,90.444,35.64064677]
[1646049765571,110.0,90.549,90.461,27.73345665]
[1646049765572,66.45,90.529,90.461,27.73345665]
[1646049765769,66.45,90.525,90.461,27.73345665]
[1646049765969,2.16174168,90.524,90.445,27.73345665]
[1646049766168,2.34455399,90.523,90.446,52.45772709]
[1646049766370,2.34455399,90.523,90.447,6.0]
[1646049766770,2.34455399,90.523,90.448,27.73345665]
[1646049766983,2.34455399,90.523,90.449,6.0]
[1646049767187,40.0,90.522,90.423,16.8324]
[1646049767385,2.4245049,90.508,90.398,16.9753]
[1646049767585,66.45,90.506,90.398,16.9753]
[1646049767787,2.17580479,90.503,90.352,24.1426]
[1646049767985,1.85396722,90.488,90.345,24.233]
[1646049768187,214.19,90.49,90.347,23.21646577]
[1646049768188,2.06800393,90.485,90.347,23.21646577]
[1646049768386,177.15,90.469,90.347,23.21646577]
[1646049768685,2.06788261,90.468,90.347,23.21646577]
[1646049768886,4.424,90.467,90.346,53.39422516]
[1646049769087,66.45,90.459,90.346,53.39422516]
[1646049769287,177.15,90.449,90.346,53.39422516]
[1646049769486,66.45,90.445,90.346,53.39422516]
[1646049769688,15.87,90.43,90.346,53.39422516]
[1646049769887,68.76561596,90.429,90.346,53.39422516]
[1646049770088,2.41924357,90.428,90.346,53.39422516]
[1646049770886,2.41924357,90.428,90.347,6.0]
[1646049772688,15.87,90.43,90.347,6.0]
[1646049773088,1.88342528,90.429,90.347,6.0]
[1646049773689,4.425,90.474,90.347,6.0]
[1646049773690,2.42267079,90.456,90.348,2.74678921]
[1646049773888,2.46660665,90.449,90.349,6.0]
[1646049774089,2.30209286,90.456,90.349,18.8129032]
[1646049774289,2.30209286,90.456,90.35,30.29142654]
[1646049774493,2.09563932,90.466,90.351,6.0]
[1646049774691,47.7361,90.477,90.351,49.10432974]
[1646049774893,2.31576072,90.466,90.352,66.27057189]
[1646049775096,2.31576072,90.466,90.353,6.0]
[1646049775295,2.31576072,90.466,90.353,72.27057189]
[1646049775498,2.31576072,90.466,90.354,12.8129032]
[1646049775695,2.43197108,90.476,90.355,6.0]
[1646049775896,47.7361,90.477,90.355,6.0]
[1646049775897,2.25926925,90.466,90.36,15.87]
[1646049776095,2.25926925,90.466,90.362,57.47042055]
[1646049776298,2.14990213,90.476,90.362,57.47042055]
[1646049776498,2.14990213,90.476,90.363,18.8129032]
[1646049776698,2.22630043,90.466,90.363,69.52378268]
[1646049776899,2.360771,90.466,90.363,72.27057189]
[1646049777098,2.360771,90.466,90.364,66.27057189]
[1646049777298,2.360771,90.466,90.365,6.0]
[1646049777499,2.360771,90.466,90.365,56.71087948]
[1646049777698,47.7361,90.477,90.366,50.71087948]
[1646049777899,1.93895638,90.466,90.367,6.0]
[1646049778098,47.7361,90.477,90.367,56.71087948]
[1646049778298,47.7361,90.477,90.37,15.87]
[1646049778501,2.15261249,90.476,90.371,6.0]
[1646049778703,47.7361,90.477,90.371,56.71087948]
[1646049778900,75.8242,90.498,90.371,61.50532858]
[1646049779103,2.23359585,90.497,90.372,63.52378268]
[1646049779299,2.23359585,90.497,90.373,6.0]
[1646049779500,6.65659585,90.497,90.373,6.0]
[1646049779699,110.7,90.495,90.373,6.0]
[1646049779903,2.45216216,90.494,90.377,110.7]
[1646049780100,15.87,90.49,90.378,6.0]
[1646049780303,2.31711903,90.489,90.385,112.6]
[1646049780501,4.423,90.519,90.385,112.6]
[1646049780502,1.87880388,90.518,90.401,46.86230057]
[1646049780904,1.87880388,90.518,90.402,33.54463733]
[1646049781105,1.87880388,90.518,90.402,48.10309386]
[1646049781304,1.87880388,90.518,90.403,27.54463733]
[1646049781503,1.87880388,90.518,90.404,116.7]
[1646049781803,1.87880388,90.518,90.404,165.71148789]
[1646049782002,1.87880388,90.518,90.405,42.10309386]
[1646049782202,1.87880388,90.518,90.41,15.87]
[1646049782403,1.87880388,90.518,90.411,6.0]
[1646049782603,1.87880388,90.518,90.412,110.7]
[1646049782803,1.87880388,90.518,90.415,50.90351821]
[1646049783003,1.87880388,90.518,90.416,6.0]
[1646049783203,1.87880388,90.518,90.416,20.55845653]